[Event "Kupreichik Memorial Open 2018"]
[Site "Minsk"]
[Date "2018.06.22"]
[Round "5"]
[White "Terletsky, Oleg"]
[Black "Vashchilov, Sergey"]
[Result "1-0"]
[ECO "C04"]
[WhiteElo "2268"]
[BlackElo "2122"]
[Annotator "NA"]
[PlyCount "113"]
[EventDate "2018.06.21"]
[EventCountry "BLR"]
[SourceTitle "playchess.com"]
[Source "ChessBase"]
[SourceQuality "1"]
[TimeControl "900+10"]

1. e4 {[%emt 0:00:00]} e6 {[%emt 0:00:02]} 2. d4 {[%emt 0:00:00]} d5 {[%emt 0:00:00]} 3. Nd2 {[%emt 0:00:00]} Nc6 {[%emt 0:00:01]} 4. Ngf3 {[%emt 0:00:00]} Nf6 {[%emt 0:00:01]} 5. e5 {[%emt 0:00:00]} Nd7 {[%emt 0:00:02]} 6. Bd3 {[%emt 0:00:00]} f6 {[%emt 0:00:02]} 7. exf6 {[%emt 0:00:06]} Qxf6 {[%emt 0:00:05]} 8. Nf1 {[%emt 0:00:04]} Bd6 {[%emt 0:00:25]} 9. Ne3 {[%emt 0:00:03]} O-O {[%emt 0:00:04]} 10. c4 {[%emt 0:00:20]} dxc4 {[%emt 0:03:25]} 11. Nxc4 {[%emt 0:00:24]} Nxd4 {[%emt 0:01:44]} 12. Bxh7+ {[%emt 0:01:07]} Kxh7 {[%emt 0:00:03]} 13. Qxd4 {[%emt 0:00:02]} Qxd4 {[%emt 0:00:33]} 14. Nxd4 {[%emt 0:00:04]} Ne5 {[%emt 0:00:44]} 15. Nxd6 {[%emt 0:00:52]} cxd6 {[%emt 0:00:02]} 16. O-O {[%emt 0:00:29]} Bd7 {[%emt 0:01:12]} 17. Bg5 {[%emt 0:00:11]} Nf7 {[%emt 0:00:20]} 18. Bd2 {[%emt 0:00:48]} e5 {[%emt 0:00:21]} 19. Nf3 {[%emt 0:00:05]} Bc6 {[%emt 0:01:21]} 20. Ng5+ {[%emt 0:00:02]} Nxg5 {[%emt 0:00:01]} 21. Bxg5 {[%emt 0:00:01]} d5 {[%emt 0:00:18]} 22. Rfe1 {[%emt 0:00:20]} Rf5 {[%emt 0:00:56]} 23. Bh4 {[%emt 0:00:27]} e4 {[%emt 0:00:59]} 24. Rad1 {[%emt 0:00:05]} a5 {[%emt 0:00:11]} 25. Be7 {[%emt 0:00:31]} a4 {[%emt 0:00:02]} 26. Bc5 {[%emt 0:00:30]} Re8 {[%emt 0:00:20]} 27. Re3 {[%emt 0:00:33]} Re6 {[%emt 0:00:48]} 28. Bd4 {[%emt 0:00:08]} Rg6 {[%emt 0:00:43]} 29. Rc1 {[%emt 0:00:43]} Rfg5 {[%emt 0:00:16]} 30. Rg3 {[%emt 0:00:02]} Rxg3 {[%emt 0:00:02]} 31. hxg3 {[%emt 0:00:01]} Re6 {[%emt 0:00:04]} 32. Rc5 {[%emt 0:00:44]} Re8 {[%emt 0:00:23]} 33. Kf1 {[%emt 0:01:00]} Kg6 {[%emt 0:00:11]} 34. Ke2 {[%emt 0:00:12]} Rh8 {[%emt 0:00:01]} 35. Ke3 {[%emt 0:02:17]} Rh2 {[%emt 0:00:32]} 36. b4 {[%emt 0:00:12]} axb3 {[%emt 0:00:13]} 37. axb3 {[%emt 0:00:01]} Rh1 {[%emt 0:00:33]} 38. Kf4 {[%emt 0:00:06]} Rb1 {[%emt 0:00:07]} 39. Rc3 {[%emt 0:00:01]} Rg1 {[%emt 0:01:15]} 40. Ke5 {[%emt 0:00:40]} Rxg2 {[%emt 0:00:18]} 41. Rc1 {[%emt 0:01:12]} Rh2 {[%emt 0:00:03]} 42. b4 {[%emt 0:00:15]} Rh5+ {[%emt 0:00:05]} 43. Kd6 {[%emt 0:00:08]} Kf7 {[%emt 0:00:53]} 44. Rc5 {[%emt 0:02:07]} Rh6+ {[%emt 0:02:15]} 45. Kc7 {[%emt 0:00:03]} Ba4 {[%emt 0:00:21]} 46. Kxb7 {[%emt 0:00:10]} Bb3 {[%emt 0:00:17]} 47. Rc7+ {[%emt 0:00:25]} Ke6 {[%emt 0:00:09]} 48. Rc6+ {[%emt 0:01:34]} Kd7 {[%emt 0:00:03]} 49. Rxh6 {[%emt 0:00:05]} gxh6 {[%emt 0:00:01]} 50. b5 {[%emt 0:00:03]} Ba4 {[%emt 0:00:26]} 51. b6 {[%emt 0:00:01]} Bc6+ {[%emt 0:00:13]} 52. Kb8 {[%emt 0:00:08]} Bb5 {[%emt 0:00:12]} 53. b7 {[%emt 0:00:34]} Bc6 {[%emt 0:00:09]} 54. Ka7 {[%emt 0:00:02]} Bxb7 55. Kxb7 {[%emt 0:00:01]} Ke6 {[%emt 0:00:09]} 56. Kc6 {[%emt 0:00:27]} h5 {[%emt 0:00:08]} 57. Kc5 {[%emt 0:00:01]} 1-0

[Event "Kupreichik Memorial Open 2018"]
[Site "Minsk"]
[Date "2018.06.22"]
[Round "5"]
[White "Ten, Alexander"]
[Black "Kalinin, Dmitry"]
[Result "0-1"]
[ECO "C10"]
[WhiteElo "2265"]
[BlackElo "1995"]
[Annotator "NA"]
[PlyCount "58"]
[EventDate "2018.06.21"]
[EventCountry "BLR"]
[SourceTitle "playchess.com"]
[Source "ChessBase"]
[SourceQuality "1"]
[TimeControl "900+10"]

1. e4 {[%emt 0:01:38]} e6 {[%emt 0:00:06]} 2. d4 {[%emt 0:00:03]} d5 {[%emt 0:00:06]} 3. Nc3 {[%emt 0:00:01]} dxe4 {[%emt 0:00:04]} 4. Nxe4 {[%emt 0:00:01]} Nd7 {[%emt 0:00:02]} 5. Nf3 {[%emt 0:00:03]} Ngf6 {[%emt 0:00:02]} 6. Bd3 {[%emt 0:00:01]} Nxe4 {[%emt 0:00:03]} 7. Bxe4 {[%emt 0:00:01]} Nf6 {[%emt 0:00:01]} 8. Bd3 {[%emt 0:00:01]} c5 {[%emt 0:00:17]} 9. O-O {[%emt 0:00:20]} Bd7 {[%emt 0:00:16]} 10. Re1 {[%emt 0:01:05]} cxd4 {[%emt 0:00:27]} 11. Nxd4 {[%emt 0:00:05]} Be7 {[%emt 0:00:25]} 12. Bg5 {[%emt 0:01:47]} Qb6 {[%emt 0:01:05]} 13. Nb3 {[%emt 0:00:46]} Rd8 {[%emt 0:01:02]} 14. Be3 {[%emt 0:00:34]} Qc7 {[%emt 0:00:06]} 15. Bd4 {[%emt 0:00:54]} Bc6 {[%emt 0:01:23]} 16. h3 {[%emt 0:01:06]} Qf4 {[%emt 0:02:25]} 17. Be3 {[%emt 0:02:45]} Qh4 {[%emt 0:00:31]} 18. Qe2 {[%emt 0:00:14]} h5 {[%emt 0:01:10]} 19. Bb5 {[%emt 0:00:25]} O-O {[%emt 0:01:50]} 20. Bxc6 {[%emt 0:00:11]} bxc6 {[%emt 0:00:02]} 21. Bxa7 {[%emt 0:00:05]} Nd5 {[%emt 0:00:39]} 22. Bc5 {[%emt 0:00:27]} Nf4 {[%emt 0:00:13]} 23. Qf3 {[%emt 0:00:03]} Bxc5 {[%emt 0:00:32]} 24. Nxc5 {[%emt 0:00:02]} Rd2 {[%emt 0:00:02]} 25. Rac1 {[%emt 0:01:13]} Nxh3+ {[%emt 0:00:20]} 26. gxh3 {[%emt 0:00:43]} Qg5+ {[%emt 0:00:02]} 27. Qg3 {[%emt 0:01:19]} Qxc5 {[%emt 0:00:11]} 28. Re5 {[%emt 0:00:03]} Qd4 {[%emt 0:00:37]} 29. Rxh5 {[%emt 0:00:16]} Rd1+ 0-1

[Event "Kupreichik Memorial Open 2018"]
[Site "Minsk"]
[Date "2018.06.22"]
[Round "5"]
[White "Rakhmangulova, Anastasiya"]
[Black "Tyurin, Artem"]
[Result "1-0"]
[ECO "B42"]
[WhiteElo "2244"]
[BlackElo "1855"]
[Annotator "NA"]
[PlyCount "125"]
[EventDate "2018.06.21"]
[EventCountry "BLR"]
[SourceTitle "playchess.com"]
[Source "ChessBase"]
[SourceQuality "1"]
[TimeControl "900+10"]

1. e4 {[%emt 0:00:00]} c5 {[%emt 0:00:01]} 2. Nf3 {[%emt 0:00:00]} e6 {[%emt 0:00:03]} 3. d4 {[%emt 0:00:00]} cxd4 {[%emt 0:00:01]} 4. Nxd4 {[%emt 0:00:00]} a6 {[%emt 0:00:01]} 5. Bd3 {[%emt 0:00:00]} Nc6 {[%emt 0:00:06]} 6. Be3 {[%emt 0:00:24]} Qc7 {[%emt 0:00:07]} 7. c4 {[%emt 0:00:32]} Bd6 {[%emt 0:03:15]} 8. Nc3 {[%emt 0:03:08]} Ne5 {[%emt 0:00:57]} 9. Rc1 {[%emt 0:02:09]} Nxd3+ {[%emt 0:01:08]} 10. Qxd3 {[%emt 0:00:02]} Qb8 {[%emt 0:00:42]} 11. g3 {[%emt 0:00:39]} h5 {[%emt 0:00:42]} 12. f4 {[%emt 0:01:08]} Bc7 {[%emt 0:00:56]} 13. h4 {[%emt 0:03:34]} Nf6 {[%emt 0:00:36]} 14. Nde2 {[%emt 0:01:49]} b6 {[%emt 0:01:05]} 15. Rd1 {[%emt 0:00:32]} O-O {[%emt 0:00:26]} 16. e5 {[%emt 0:01:11]} Ng4 {[%emt 0:00:06]} 17. Bd4 {[%emt 0:00:10]} Bb7 {[%emt 0:00:10]} 18. O-O {[%emt 0:00:06]} Bc6 {[%emt 0:01:29]} 19. Ne4 {[%emt 0:00:07]} Qb7 {[%emt 0:01:35]} 20. N2c3 {[%emt 0:00:20]} Rad8 {[%emt 0:00:30]} 21. b4 {[%emt 0:01:25]} d5 {[%emt 0:01:41]} 22. exd6 {[%emt 0:00:05]} Bxd6 {[%emt 0:00:20]} 23. b5 {[%emt 0:00:16]} axb5 {[%emt 0:00:18]} 24. cxb5 {[%emt 0:00:01]} Bxe4 {[%emt 0:01:07]} 25. Qxe4 {[%emt 0:00:12]} Qe7 {[%emt 0:01:08]} 26. Na4 {[%emt 0:00:56]} Rb8 {[%emt 0:00:34]} 27. Bxg7 {[%emt 0:00:19]} Kxg7 {[%emt 0:00:23]} 28. Qd4+ {[%emt 0:00:01]} Nf6 {[%emt 0:00:10]} 29. Qxd6 {[%emt 0:00:03]} Qa7 {[%emt 0:00:00]} 30. Nc3 {[%emt 0:00:12]} Rbc8 {[%emt 0:00:18]} 31. Qe5 {[%emt 0:00:05]} Rc5 {[%emt 0:00:02]} 32. Qd4 {[%emt 0:00:08]} Qa3 {[%emt 0:00:10]} 33. Rd3 {[%emt 0:00:22]} Qb2 {[%emt 0:00:15]} 34. Rf2 {[%emt 0:00:15]} Qc1+ {[%emt 0:00:04]} 35. Kg2 {[%emt 0:00:03]} Rf5 {[%emt 0:00:15]} 36. Ne4 {[%emt 0:00:13]} Kg6 {[%emt 0:00:16]} 37. Nxf6 {[%emt 0:00:04]} Rxf6 {[%emt 0:00:01]} 38. Qxb6 {[%emt 0:00:26]} Rc8 {[%emt 0:00:15]} 39. Qe3 {[%emt 0:00:07]} Rf5 {[%emt 0:00:05]} 40. Qxc1 {[%emt 0:00:10]} Rxc1 {[%emt 0:00:03]} 41. Rb3 {[%emt 0:00:09]} Rc7 {[%emt 0:00:12]} 42. a4 {[%emt 0:00:06]} Rfc5 {[%emt 0:00:15]} 43. a5 {[%emt 0:00:10]} Rb7 {[%emt 0:00:01]} 44. Rfb2 {[%emt 0:00:01]} Kf5 {[%emt 0:00:05]} 45. a6 {[%emt 0:00:02]} Rb6 {[%emt 0:00:05]} 46. Ra2 {[%emt 0:00:20]} Rc8 {[%emt 0:00:08]} 47. Kf3 {[%emt 0:00:10]} f6 {[%emt 0:00:04]} 48. Ra5 {[%emt 0:00:22]} e5 {[%emt 0:00:06]} 49. fxe5 {[%emt 0:00:07]} fxe5 {[%emt 0:00:02]} 50. a7 {[%emt 0:00:12]} Ra8 {[%emt 0:00:07]} 51. Rba3 {[%emt 0:00:07]} Rb7 {[%emt 0:00:16]} 52. Ke3 {[%emt 0:00:06]} Rb6 {[%emt 0:00:18]} 53. Kd3 {[%emt 0:00:11]} Rb7 {[%emt 0:00:01]} 54. Kc4 {[%emt 0:00:05]} Rc7+ {[%emt 0:00:24]} 55. Kb4 {[%emt 0:00:19]} Rb7 {[%emt 0:00:37]} 56. Ra6 {[%emt 0:00:06]} e4 {[%emt 0:00:13]} 57. Kc5 {[%emt 0:00:02]} Rc8+ {[%emt 0:00:09]} 58. Rc6 {[%emt 0:00:03]} Ra8 {[%emt 0:00:05]} 59. b6 {[%emt 0:00:05]} Ke5 {[%emt 0:00:01]} 60. Rc7 {[%emt 0:00:07]} Rxc7+ {[%emt 0:00:23]} 61. bxc7 {[%emt 0:00:01]} Ke6 {[%emt 0:00:01]} 62. Kc6 {[%emt 0:00:01]} Ke7 {[%emt 0:00:19]} 63. Kb7 {[%emt 0:00:06]} 1-0

[Event "Kupreichik Memorial Open 2018"]
[Site "Minsk"]
[Date "2018.06.22"]
[Round "5"]
[White "Cherepov, Alexej"]
[Black "Polovkov, Valery"]
[Result "1-0"]
[ECO "A40"]
[WhiteElo "2234"]
[BlackElo "1830"]
[Annotator "NA"]
[PlyCount "67"]
[EventDate "2018.06.21"]
[EventCountry "BLR"]
[SourceTitle "playchess.com"]
[Source "ChessBase"]
[SourceQuality "1"]
[TimeControl "900+10"]

1. d4 {[%emt 0:00:00]} b6 {[%emt 0:00:22]} 2. e4 {[%emt 0:00:00]} Bb7 {[%emt 0:00:01]} 3. Bd3 {[%emt 0:00:02]} e6 {[%emt 0:00:02]} 4. Nf3 {[%emt 0:00:08]} g6 {[%emt 0:00:02]} 5. Bg5 {[%emt 0:00:12]} f6 {[%emt 0:00:42]} 6. Be3 {[%emt 0:00:03]} Bg7 {[%emt 0:00:06]} 7. h4 {[%emt 0:00:04]} h5 {[%emt 0:00:18]} 8. c4 {[%emt 0:01:21]} Ne7 {[%emt 0:00:05]} 9. Nc3 {[%emt 0:00:02]} a6 {[%emt 0:00:03]} 10. Qd2 {[%emt 0:00:47]} d6 {[%emt 0:00:16]} 11. O-O-O {[%emt 0:00:22]} Nd7 {[%emt 0:00:01]} 12. Rhg1 {[%emt 0:00:32]} f5 {[%emt 0:02:24]} 13. Ng5 {[%emt 0:00:33]} Nf8 {[%emt 0:00:37]} 14. f3 {[%emt 0:00:47]} Qd7 {[%emt 0:00:11]} 15. Qe2 {[%emt 0:00:42]} Bf6 {[%emt 0:02:41]} 16. e5 {[%emt 0:01:23]} Bxg5 {[%emt 0:00:24]} 17. Bxg5 {[%emt 0:00:02]} d5 {[%emt 0:00:24]} 18. Kb1 {[%emt 0:01:29]} c6 {[%emt 0:00:38]} 19. Bf6 {[%emt 0:01:17]} Rh7 {[%emt 0:00:42]} 20. g4 {[%emt 0:00:21]} hxg4 {[%emt 0:00:05]} 21. fxg4 {[%emt 0:00:01]} b5 {[%emt 0:01:06]} 22. cxb5 {[%emt 0:00:21]} axb5 {[%emt 0:00:04]} 23. a3 {[%emt 0:00:09]} Ba6 {[%emt 0:00:31]} 24. Na2 {[%emt 0:02:02]} Qb7 {[%emt 0:00:36]} 25. Nb4 {[%emt 0:00:18]} Nd7 {[%emt 0:00:05]} 26. h5 {[%emt 0:00:45]} gxh5 {[%emt 0:00:54]} 27. gxf5 {[%emt 0:00:15]} exf5 {[%emt 0:00:47]} 28. Bxe7 {[%emt 0:00:18]} Rxe7 {[%emt 0:01:40]} 29. Rg8+ {[%emt 0:00:49]} Nf8 {[%emt 0:00:36]} 30. Qxh5+ {[%emt 0:00:11]} Kd7 {[%emt 0:00:35]} 31. Nxa6 {[%emt 0:02:34]} Qxa6 {[%emt 0:00:16]} 32. Bxf5+ {[%emt 0:00:11]} Kc7 {[%emt 0:00:01]} 33. Qh6 {[%emt 0:00:21]} Kb7 {[%emt 0:00:53]} 34. Rxf8 {[%emt 0:00:07]} 1-0

[Event "Kupreichik Memorial Open 2018"]
[Site "Minsk"]
[Date "2018.06.22"]
[Round "5"]
[White "Osmolny, Vladimir I"]
[Black "Masjuk, Vladimir"]
[Result "1-0"]
[ECO "A20"]
[WhiteElo "2163"]
[BlackElo "1829"]
[Annotator "NA"]
[PlyCount "81"]
[EventDate "2018.06.21"]
[EventCountry "BLR"]
[SourceTitle "playchess.com"]
[Source "ChessBase"]
[SourceQuality "1"]
[TimeControl "900+10"]

1. c4 {[%emt 0:00:00]} e5 {[%emt 0:00:02]} 2. d3 {[%emt 0:00:00]} Nc6 {[%emt 0:00:04]} 3. a3 {[%emt 0:00:20]} d6 {[%emt 0:00:05]} 4. g3 {[%emt 0:00:13]} Nf6 {[%emt 0:00:05]} 5. Bg2 {[%emt 0:00:03]} Be7 {[%emt 0:00:04]} 6. Nc3 {[%emt 0:00:07]} O-O {[%emt 0:00:06]} 7. e3 {[%emt 0:00:11]} Bg4 {[%emt 0:00:20]} 8. Nge2 {[%emt 0:00:18]} Qd7 {[%emt 0:00:37]} 9. h3 {[%emt 0:00:19]} Bh5 {[%emt 0:00:09]} 10. O-O {[%emt 0:00:37]} Rad8 {[%emt 0:00:37]} 11. g4 {[%emt 0:00:29]} Bg6 {[%emt 0:00:05]} 12. f4 {[%emt 0:00:02]} exf4 {[%emt 0:00:18]} 13. exf4 {[%emt 0:00:03]} h5 {[%emt 0:01:25]} 14. f5 {[%emt 0:00:24]} Bh7 {[%emt 0:00:03]} 15. Nf4 {[%emt 0:00:36]} hxg4 {[%emt 0:00:20]} 16. hxg4 {[%emt 0:00:02]} Ne5 {[%emt 0:01:55]} 17. Bh3 {[%emt 0:00:07]} Qc6 {[%emt 0:02:17]} 18. Be3 {[%emt 0:00:26]} g5 {[%emt 0:02:16]} 19. Nfd5 {[%emt 0:00:13]} Qd7 {[%emt 0:02:24]} 20. Nxe7+ {[%emt 0:00:11]} Qxe7 {[%emt 0:00:01]} 21. Bxg5 {[%emt 0:00:02]} c6 {[%emt 0:00:14]} 22. Qd2 {[%emt 0:00:27]} d5 {[%emt 0:00:33]} 23. cxd5 {[%emt 0:00:12]} cxd5 {[%emt 0:00:01]} 24. Rae1 {[%emt 0:00:12]} Qd6 {[%emt 0:00:42]} 25. Bf4 {[%emt 0:02:39]} Qb6+ {[%emt 0:00:30]} 26. d4 {[%emt 0:00:10]} Nc6 {[%emt 0:00:30]} 27. Be5 {[%emt 0:00:42]} Nxe5 {[%emt 0:00:15]} 28. Rxe5 {[%emt 0:00:02]} Rfe8 {[%emt 0:00:21]} 29. Rfe1 {[%emt 0:00:25]} Rxe5 {[%emt 0:00:13]} 30. Rxe5 {[%emt 0:00:02]} Kh8 {[%emt 0:00:40]} 31. Kg2 {[%emt 0:00:16]} Ne4 {[%emt 0:00:21]} 32. Nxe4 {[%emt 0:00:22]} dxe4 {[%emt 0:00:03]} 33. Rxe4 {[%emt 0:00:08]} f6 {[%emt 0:00:09]} 34. Re6 {[%emt 0:03:36]} Rxd4 {[%emt 0:00:36]} 35. Qe2 {[%emt 0:03:07]} Qa5 {[%emt 0:00:52]} 36. Re8+ {[%emt 0:00:10]} Bg8 {[%emt 0:00:02]} 37. Rxg8+ {[%emt 0:01:05]} Kxg8 {[%emt 0:00:02]} 38. Qe8+ {[%emt 0:00:01]} Kg7 {[%emt 0:00:09]} 39. Qe7+ {[%emt 0:00:02]} Kg8 {[%emt 0:00:11]} 40. Qe8+ {[%emt 0:00:00]} Kg7 {[%emt 0:00:01]} 41. Qe6 {Kg8 Qe8+} 1-0

[Event "Kupreichik Memorial Open 2018"]
[Site "Minsk"]
[Date "2018.06.22"]
[Round "5"]
[White "Kuznetsov, Mikhail V"]
[Black "Rybakova, Polina"]
[Result "1-0"]
[ECO "A49"]
[WhiteElo "2162"]
[BlackElo "1826"]
[Annotator "NA"]
[PlyCount "63"]
[EventDate "2018.06.21"]
[EventCountry "BLR"]
[SourceTitle "playchess.com"]
[Source "ChessBase"]
[SourceQuality "1"]
[TimeControl "900+10"]

1. d4 {[%emt 0:00:00]} Nf6 {[%emt 0:00:06]} 2. Nf3 {[%emt 0:00:00]} g6 {[%emt 0:00:02]} 3. g3 {[%emt 0:00:00]} Bg7 {[%emt 0:00:01]} 4. Bg2 {[%emt 0:00:00]} O-O {[%emt 0:00:09]} 5. O-O {[%emt 0:00:00]} d6 {[%emt 0:00:09]} 6. Nc3 {[%emt 0:00:07]} c6 {[%emt 0:00:37]} 7. a4 {[%emt 0:00:30]} Nbd7 {[%emt 0:00:18]} 8. e4 {[%emt 0:00:04]} e5 {[%emt 0:00:18]} 9. h3 {[%emt 0:00:04]} Re8 {[%emt 0:01:52]} 10. a5 {[%emt 0:00:13]} Nh5 {[%emt 0:00:24]} 11. Re1 {[%emt 0:00:19]} Nf8 {[%emt 0:01:31]} 12. Bg5 {[%emt 0:00:49]} Qc7 {[%emt 0:00:54]} 13. d5 {[%emt 0:00:43]} h6 {[%emt 0:00:56]} 14. Be3 {[%emt 0:00:14]} Nf6 {[%emt 0:01:44]} 15. Qd2 {[%emt 0:00:26]} Kh7 {[%emt 0:00:46]} 16. Nh4 {[%emt 0:01:45]} cxd5 {[%emt 0:02:13]} 17. exd5 {[%emt 0:00:29]} Qd7 {[%emt 0:01:27]} 18. Qd3 {[%emt 0:01:55]} Nh5 {[%emt 0:01:35]} 19. g4 {[%emt 0:04:20]} Nf4 {[%emt 0:00:25]} 20. Bxf4 {[%emt 0:00:04]} exf4 {[%emt 0:00:01]} 21. Nb5 {[%emt 0:00:57]} Bxb2 {[%emt 0:00:54]} 22. Rxe8 {[%emt 0:00:49]} Qxe8 {[%emt 0:01:00]} 23. Rb1 {[%emt 0:01:06]} Be5 {[%emt 0:00:53]} 24. Nf3 {[%emt 0:01:02]} Qd8 {[%emt 0:00:21]} 25. Nxe5 {[%emt 0:00:33]} dxe5 {[%emt 0:00:01]} 26. d6 {[%emt 0:00:08]} Ne6 27. a6 {[%emt 0:00:16]} Rb8 {[%emt 0:00:37]} 28. Nxa7 {[%emt 0:00:13]} Nc5 {[%emt 0:00:11]} 29. Qd5 {[%emt 0:00:11]} Nxa6 {[%emt 0:00:20]} 30. Qxf7+ {[%emt 0:00:17]} Kh8 {[%emt 0:00:01]} 31. Nxc8 {[%emt 0:00:18]} Rxc8 {[%emt 0:00:10]} 32. Rxb7 {[%emt 0:00:06]} 1-0

[Event "Kupreichik Memorial Open 2018"]
[Site "Minsk"]
[Date "2018.06.22"]
[Round "5"]
[White "Katashuk, Uladzislau"]
[Black "Sadovnikov, Konstantin"]
[Result "0-1"]
[ECO "B24"]
[WhiteElo "2149"]
[BlackElo "1908"]
[Annotator "NA"]
[PlyCount "92"]
[EventDate "2018.06.21"]
[EventCountry "BLR"]
[SourceTitle "playchess.com"]
[Source "ChessBase"]
[SourceQuality "1"]
[TimeControl "900+10"]

1. e4 {[%emt 0:00:00]} c5 {[%emt 0:00:01]} 2. Nc3 {[%emt 0:00:00]} Nc6 {[%emt 0:00:00]} 3. Bb5 {[%emt 0:00:02]} Nd4 {[%emt 0:00:07]} 4. Bc4 {[%emt 0:00:05]} e6 {[%emt 0:00:01]} 5. Nge2 {[%emt 0:00:03]} Ne7 {[%emt 0:00:02]} 6. Nxd4 {[%emt 0:00:03]} cxd4 {[%emt 0:00:01]} 7. Ne2 {[%emt 0:00:01]} Nc6 {[%emt 0:00:01]} 8. O-O {[%emt 0:00:12]} g6 {[%emt 0:00:01]} 9. d3 {[%emt 0:00:04]} Bg7 {[%emt 0:00:01]} 10. f4 {[%emt 0:00:01]} O-O {[%emt 0:00:07]} 11. Ng3 {[%emt 0:00:18]} a5 {[%emt 0:00:27]} 12. a3 {[%emt 0:00:20]} Ne7 {[%emt 0:00:25]} 13. e5 {[%emt 0:00:54]} d5 {[%emt 0:00:16]} 14. exd6 {[%emt 0:00:12]} Qxd6 {[%emt 0:00:01]} 15. Ne4 {[%emt 0:00:05]} Qd8 {[%emt 0:00:17]} 16. Bd2 {[%emt 0:01:34]} Nf5 17. Qe2 {[%emt 0:01:32]} Nd6 {[%emt 0:02:47]} 18. Nxd6 {[%emt 0:00:10]} Qxd6 {[%emt 0:00:01]} 19. b4 {[%emt 0:00:01]} b6 {[%emt 0:00:10]} 20. Qe1 {[%emt 0:00:10]} Qc7 {[%emt 0:00:10]} 21. Rb1 {[%emt 0:00:10]} Bd7 {[%emt 0:03:16]} 22. b5 {[%emt 0:04:19]} Rac8 {[%emt 0:01:02]} 23. Qh4 {[%emt 0:00:13]} Qc5 {[%emt 0:00:24]} 24. a4 {[%emt 0:01:34]} Rcd8 {[%emt 0:01:07]} 25. Ra1 {[%emt 0:00:16]} Bc8 {[%emt 0:00:17]} 26. Bc1 {[%emt 0:00:03]} Qc7 {[%emt 0:00:35]} 27. Ba3 {[%emt 0:00:18]} Rfe8 {[%emt 0:00:01]} 28. Rf3 {[%emt 0:00:41]} Bb7 {[%emt 0:00:12]} 29. Rh3 {[%emt 0:00:06]} h6 {[%emt 0:00:11]} 30. Re1 {[%emt 0:02:45]} Bd5 {[%emt 0:00:20]} 31. f5 {[%emt 0:00:51]} g5 {[%emt 0:05:24]} 32. Qf2 exf5 33. Rf1 {[%emt 0:03:06]} Bxc4 {[%emt 0:00:47]} 34. dxc4 {[%emt 0:00:01]} f4 {[%emt 0:00:12]} 35. Rd3 {[%emt 0:00:07]} Qxc4 {[%emt 0:00:09]} 36. g3 {[%emt 0:00:04]} fxg3 {[%emt 0:00:17]} 37. hxg3 {[%emt 0:00:04]} Qe6 {[%emt 0:00:17]} 38. Bb2 {[%emt 0:00:10]} Rd7 {[%emt 0:01:03]} 39. Rfd1 {[%emt 0:00:02]} Qe2 {[%emt 0:00:30]} 40. Bxd4 {[%emt 0:00:05]} Bxd4 {[%emt 0:00:15]} 41. Rxd4 {[%emt 0:00:01]} Rde7 {[%emt 0:00:12]} 42. Rd6 {[%emt 0:00:16]} Qxf2+ {[%emt 0:00:04]} 43. Kxf2 {[%emt 0:00:01]} Re2+ {[%emt 0:00:01]} 44. Kf3 {[%emt 0:00:10]} f5 {[%emt 0:00:06]} 45. R1d3 {[%emt 0:00:00]} g4+ {[%emt 0:00:04]} 46. Kf4 {[%emt 0:00:02]} Rf2+ {[%emt 0:00:01]} 0-1

[Event "Kupreichik Memorial Open 2018"]
[Site "Minsk"]
[Date "2018.06.22"]
[Round "5"]
[White "Fedotov, Konstantin"]
[Black "Barskij, Vladimir"]
[Result "1/2-1/2"]
[ECO "B24"]
[WhiteElo "2090"]
[BlackElo "2352"]
[Annotator "NA"]
[PlyCount "72"]
[EventDate "2018.06.21"]
[EventCountry "BLR"]
[SourceTitle "playchess.com"]
[Source "ChessBase"]
[SourceQuality "1"]
[TimeControl "900+10"]

1. e4 {[%emt 0:00:00]} c5 {[%emt 0:00:02]} 2. Nc3 {[%emt 0:00:00]} Nc6 {[%emt 0:00:02]} 3. Bb5 {[%emt 0:00:00]} Nd4 {[%emt 0:00:02]} 4. Bc4 {[%emt 0:00:00]} e6 {[%emt 0:00:03]} 5. Nf3 {[%emt 0:00:00]} a6 {[%emt 0:00:04]} 6. Nxd4 {[%emt 0:00:05]} cxd4 {[%emt 0:00:04]} 7. Ne2 {[%emt 0:00:01]} b5 {[%emt 0:00:41]} 8. Bb3 {[%emt 0:00:02]} Bb7 {[%emt 0:00:18]} 9. d3 {[%emt 0:00:01]} Bc5 {[%emt 0:00:39]} 10. O-O {[%emt 0:00:06]} Ne7 {[%emt 0:01:26]} 11. Ng3 {[%emt 0:00:24]} O-O {[%emt 0:00:19]} 12. f4 {[%emt 0:00:03]} f5 {[%emt 0:00:59]} 13. Qh5 {[%emt 0:00:02]} Qe8 {[%emt 0:00:31]} 14. Qg5 {[%emt 0:02:21]} Qg6 {[%emt 0:01:23]} 15. Qxg6 {[%emt 0:00:23]} hxg6 {[%emt 0:00:08]} 16. Bd2 {[%emt 0:00:03]} a5 {[%emt 0:01:25]} 17. a4 {[%emt 0:00:06]} b4 {[%emt 0:00:05]} 18. Rfe1 {[%emt 0:00:36]} Kh7 {[%emt 0:00:46]} 19. Nh1 {[%emt 0:01:35]} fxe4 {[%emt 0:00:29]} 20. dxe4 {[%emt 0:00:02]} d3+ {[%emt 0:00:01]} 21. Nf2 {[%emt 0:00:15]} dxc2 {[%emt 0:00:16]} 22. Bxc2 {[%emt 0:00:01]} Bd4 {[%emt 0:01:00]} 23. Rab1 {[%emt 0:00:09]} Rac8 {[%emt 0:00:02]} 24. Bd3 {[%emt 0:00:01]} g5 {[%emt 0:01:01]} 25. f5 {[%emt 0:00:24]} Nc6 {[%emt 0:00:34]} 26. Be3 {[%emt 0:00:58]} Bxe3 {[%emt 0:00:12]} 27. Rxe3 {[%emt 0:00:01]} Ne5 {[%emt 0:00:06]} 28. Bb5 {[%emt 0:01:47]} g6 {[%emt 0:02:22]} 29. Rd1 {[%emt 0:01:14]} Bc6 {[%emt 0:00:10]} 30. Bxc6 {[%emt 0:03:58]} Rxc6 {[%emt 0:00:05]} 31. fxe6 {[%emt 0:00:05]} dxe6 {[%emt 0:00:17]} 32. Nd3 {[%emt 0:00:21]} Rd8 {[%emt 0:00:31]} 33. Kf1 {[%emt 0:01:42]} Kg7 {[%emt 0:01:01]} 34. Ke1 {[%emt 0:01:19]} Rcd6 {[%emt 0:01:21]} 35. Nf2 {[%emt 0:00:12]} Nc4 {[%emt 0:00:20]} 36. Re2 {[%emt 0:00:15]} Rxd1+ {[%emt 0:00:55]} 1/2-1/2

[Event "Kupreichik Memorial Open 2018"]
[Site "Minsk"]
[Date "2018.06.22"]
[Round "5"]
[White "Kaliadzich, Maryia"]
[Black "Tsigelnitskiy, Ilusha"]
[Result "0-1"]
[ECO "A57"]
[WhiteElo "2058"]
[BlackElo "2253"]
[Annotator "NA"]
[PlyCount "42"]
[EventDate "2018.06.21"]
[EventCountry "BLR"]
[SourceTitle "playchess.com"]
[Source "ChessBase"]
[SourceQuality "1"]
[TimeControl "900+10"]

1. d4 {[%emt 0:00:00]} Nf6 {[%emt 0:01:39]} 2. c4 {[%emt 0:00:00]} c5 {[%emt 0:00:01]} 3. d5 {[%emt 0:00:02]} b5 {[%emt 0:00:02]} 4. cxb5 {[%emt 0:00:08]} a6 {[%emt 0:00:01]} 5. b6 {[%emt 0:00:10]} d6 {[%emt 0:00:04]} 6. Nc3 {[%emt 0:00:04]} Nbd7 {[%emt 0:00:03]} 7. e4 {[%emt 0:00:11]} g6 {[%emt 0:00:06]} 8. g3 {[%emt 0:00:23]} Bg7 {[%emt 0:02:32]} 9. Bg2 {[%emt 0:00:03]} a5 {[%emt 0:00:23]} 10. Nge2 {[%emt 0:00:20]} Ba6 {[%emt 0:00:10]} 11. O-O {[%emt 0:00:42]} O-O {[%emt 0:00:04]} 12. Re1 {[%emt 0:02:17]} Ne5 {[%emt 0:01:01]} 13. Nf4 {[%emt 0:02:33]} Nfd7 {[%emt 0:00:04]} 14. b7 {[%emt 0:01:26]} Rb8 {[%emt 0:00:26]} 15. Bf1 {[%emt 0:00:02]} Bxf1 {[%emt 0:00:10]} 16. Rxf1 {[%emt 0:00:02]} Rxb7 {[%emt 0:00:21]} 17. Nd3 {[%emt 0:00:23]} Qb6 {[%emt 0:00:33]} 18. Kh1 {[%emt 0:00:30]} Qa6 {[%emt 0:00:08]} 19. Nf4 {[%emt 0:00:28]} Nc4 {[%emt 0:01:27]} 20. Qe2 {[%emt 0:00:20]} Ra8 {[%emt 0:00:02]} 21. Rb1 {[%emt 0:00:52]} Bxc3 {[%emt 0:00:14]} 0-1